[Event "Titled Tuesday Blitz August 23 Late 2022"]
[White "Hardaway, Brewington"]
[Black "Paravyan, David"]
[WhiteFideId "30941849"]
[BlackFideId "4194985"]
[WhiteElo "1813"]
[BlackElo "2569"]
[Result "1/2-1/2"]
[Round "04"]
[TimeControl "180+1"]
[Date "2022.08.23"]
[WhiteClock "0:00:03"]
[BlackClock "0:00:06"]

1. e4 {[%clk 0:03:00]}  e5 {[%clk 0:02:59]} 2. Nf3 {[%clk 0:02:58]}  Nf6 {[%clk 0:03:00]} 3. Nxe5 {[%clk 0:02:58]}  d6 {[%clk 0:03:00]} 4. Nf3 {[%clk 0:02:58]}  Nxe4 {[%clk 0:03:00]} 5. d4 {[%clk 0:02:57]}  d5 {[%clk 0:03:01]} 6. Bd3 {[%clk 0:02:58]}  Bd6 {[%clk 0:03:01]} 7. O-O {[%clk 0:02:58]}  O-O {[%clk 0:03:01]} 8. c4 {[%clk 0:02:58]}  c6 {[%clk 0:03:02]} 9. Nc3 {[%clk 0:02:58]}  Nxc3 {[%clk 0:03:01]} 10. bxc3 {[%clk 0:02:59]}  dxc4 {[%clk 0:03:01]} 11. Bxc4 {[%clk 0:03:00]}  Bg4 {[%clk 0:03:01]} 12. h3 {[%clk 0:03:00]}  Bh5 {[%clk 0:03:02]} 13. Re1 {[%clk 0:02:59]}  Nd7 {[%clk 0:02:58]} 14. Be3 {[%clk 0:02:50]}  b5 {[%clk 0:02:53]} 15. Be2 {[%clk 0:02:48]}  Nb6 {[%clk 0:02:52]} 16. Bg5 {[%clk 0:02:29]}  Qc7 {[%clk 0:02:39]} 17. Nd2 {[%clk 0:02:21]}  Bxe2 {[%clk 0:02:37]} 18. Rxe2 {[%clk 0:02:21]}  Rfe8 {[%clk 0:02:36]} 19. Ne4 {[%clk 0:02:18]}  Nd5 {[%clk 0:02:32]} 20. Bd2 {[%clk 0:01:58]}  Re6 {[%clk 0:02:26]} 21. a4 {[%clk 0:01:49]}  Rae8 {[%clk 0:02:17]} 22. Nxd6 {[%clk 0:01:44]}  Rxe2 {[%clk 0:02:08]} 23. Nxe8 {[%clk 0:01:44]}  Rxe8 {[%clk 0:02:09]} 24. Qb3 {[%clk 0:01:34]}  a6 {[%clk 0:02:00]} 25. axb5 {[%clk 0:01:31]}  axb5 {[%clk 0:02:01]} 26. c4 {[%clk 0:01:31]}  bxc4 {[%clk 0:01:50]} 27. Qxc4 {[%clk 0:01:32]}  Qd7 {[%clk 0:01:20]} 28. Rc1 {[%clk 0:01:28]}  Re6 {[%clk 0:01:16]} 29. Qd3 {[%clk 0:01:17]}  h6 {[%clk 0:01:14]} 30. Ra1 {[%clk 0:01:06]}  Re8 {[%clk 0:01:11]} 31. Re1 {[%clk 0:01:03]}  Rxe1+ {[%clk 0:01:10]} 32. Bxe1 {[%clk 0:01:04]}  Qb7 {[%clk 0:01:10]} 33. Bd2 {[%clk 0:01:01]}  Qb2 {[%clk 0:01:10]} 34. Kf1 {[%clk 0:00:59]}  Kf8 {[%clk 0:01:01]} 35. g3 {[%clk 0:00:59]}  Qb5 {[%clk 0:00:58]} 36. Ke2 {[%clk 0:00:58]}  Ke7 {[%clk 0:00:58]} 37. Bc1 {[%clk 0:00:56]}  Ke6 {[%clk 0:00:52]} 38. Kd2 {[%clk 0:00:50]}  Qa5+ {[%clk 0:00:52]} 39. Kd1 {[%clk 0:00:46]}  Qa4+ {[%clk 0:00:51]} 40. Ke1 {[%clk 0:00:30]}  f5 {[%clk 0:00:46]} 41. Kf1 {[%clk 0:00:27]}  Qb5 {[%clk 0:00:45]} 42. Ke2 {[%clk 0:00:27]}  h5 {[%clk 0:00:41]} 43. h4 {[%clk 0:00:26]}  Nc3+ {[%clk 0:00:31]} 44. Ke3 {[%clk 0:00:24]}  f4+ {[%clk 0:00:28]} 45. gxf4 {[%clk 0:00:23]}  Nd5+ {[%clk 0:00:29]} 46. Ke4 {[%clk 0:00:17]}  Nf6+ {[%clk 0:00:22]} 47. Ke3 {[%clk 0:00:17]}  Ng4+ {[%clk 0:00:23]} 48. Ke2 {[%clk 0:00:17]}  Qxd3+ {[%clk 0:00:23]} 49. Kxd3 {[%clk 0:00:18]}  Nxf2+ {[%clk 0:00:23]} 50. Kc4 {[%clk 0:00:18]}  Ne4 {[%clk 0:00:21]} 51. Ba3 {[%clk 0:00:14]}  g6 {[%clk 0:00:22]} 52. Bf8 {[%clk 0:00:13]}  Ng3 {[%clk 0:00:19]} 53. Bh6 {[%clk 0:00:13]}  Ne4 {[%clk 0:00:16]} 54. Bg5 {[%clk 0:00:12]}  Kd6 {[%clk 0:00:16]} 55. Bd8 {[%clk 0:00:10]}  Kd7 {[%clk 0:00:16]} 56. Bg5 {[%clk 0:00:11]}  Ke6 {[%clk 0:00:16]} 57. Bd8 {[%clk 0:00:11]}  Kd6 {[%clk 0:00:15]} 58. Bg5 {[%clk 0:00:11]}  Ng3 {[%clk 0:00:15]} 59. Bf6 {[%clk 0:00:10]}  Nf5 {[%clk 0:00:15]} 60. Bg5 {[%clk 0:00:10]}  Ne3+ {[%clk 0:00:16]} 61. Kd3 {[%clk 0:00:11]}  Nd5 {[%clk 0:00:15]} 62. Kc4 {[%clk 0:00:11]}  Nb6+ {[%clk 0:00:16]} 63. Kd3 {[%clk 0:00:10]}  Kd5 {[%clk 0:00:16]} 64. Bf6 {[%clk 0:00:11]}  Nc4 {[%clk 0:00:15]} 65. Bh8 {[%clk 0:00:09]}  Nd6 {[%clk 0:00:15]} 66. Bf6 {[%clk 0:00:10]}  Nf5 {[%clk 0:00:16]} 67. Kc3 {[%clk 0:00:06]}  Ne3 {[%clk 0:00:16]} 68. Kd3 {[%clk 0:00:07]}  Ng4 {[%clk 0:00:16]} 69. Bh8 {[%clk 0:00:05]}  Nh6 {[%clk 0:00:14]} 70. Bf6 {[%clk 0:00:05]}  Nf5 {[%clk 0:00:14]} 71. Kc3 {[%clk 0:00:05]}  Nd6 {[%clk 0:00:09]} 72. Kd3 {[%clk 0:00:05]}  Ne4 {[%clk 0:00:08]} 73. Be5 {[%clk 0:00:04]}  Nf2+ {[%clk 0:00:08]} 74. Kc3 {[%clk 0:00:04]}  Nh3 {[%clk 0:00:07]} 75. Kd3 {[%clk 0:00:04]}  Nf2+ {[%clk 0:00:07]} 76. Kc3 {[%clk 0:00:04]}  Ne4+ {[%clk 0:00:05]} 77. Kd3 {[%clk 0:00:04]}  Ng3 {[%clk 0:00:05]} 78. Bh8 {[%clk 0:00:04]}  Ke6 {[%clk 0:00:05]} 79. Kc4 {[%clk 0:00:04]}  Nf5 {[%clk 0:00:06]} 80. Be5 {[%clk 0:00:04]}  Nxh4 {[%clk 0:00:06]} 81. Kc5 {[%clk 0:00:03]}  Kd7 {[%clk 0:00:06]} 82. d5 {[%clk 0:00:04]}  cxd5 {[%clk 0:00:06]} 83. Kxd5 {[%clk 0:00:05]}  Nf5 {[%clk 0:00:07]} 84. Ke4 {[%clk 0:00:05]}  Ke7 {[%clk 0:00:08]} 85. Kf3 {[%clk 0:00:05]}  Ke6 {[%clk 0:00:08]} 86. Ke4 {[%clk 0:00:06]}  Ne7 {[%clk 0:00:09]} 87. Kf3 {[%clk 0:00:06]}  Nc6 {[%clk 0:00:10]} 88. Bc7 {[%clk 0:00:06]}  Kf5 {[%clk 0:00:10]} 89. Kg3 {[%clk 0:00:06]}  Ne7 {[%clk 0:00:11]} 90. Be5 {[%clk 0:00:06]}  Nd5 {[%clk 0:00:11]} 91. Bd6 {[%clk 0:00:06]}  Nf6 {[%clk 0:00:11]} 92. Bb8 {[%clk 0:00:06]}  Ne4+ {[%clk 0:00:12]} 93. Kh4 {[%clk 0:00:06]}  Nc3 {[%clk 0:00:12]} 94. Kg3 {[%clk 0:00:07]}  Ne2+ {[%clk 0:00:11]} 95. Kf3 {[%clk 0:00:07]}  Nd4+ {[%clk 0:00:12]} 96. Kg3 {[%clk 0:00:07]}  Nc6 {[%clk 0:00:12]} 97. Bc7 {[%clk 0:00:08]}  Nb4 {[%clk 0:00:13]} 98. Bb8 {[%clk 0:00:08]}  Nd3 {[%clk 0:00:14]} 99. Kf3 {[%clk 0:00:08]}  Ne1+ {[%clk 0:00:13]} 100. Kf2 {[%clk 0:00:08]}  Nc2 {[%clk 0:00:13]} 101. Kg3 {[%clk 0:00:08]}  Ke4 {[%clk 0:00:13]} 102. Kh4 {[%clk 0:00:08]}  Kf5 {[%clk 0:00:11]} 103. Kg3 {[%clk 0:00:08]}  Nd4 {[%clk 0:00:11]} 104. Bc7 {[%clk 0:00:07]}  Ke4 {[%clk 0:00:09]} 105. Kh4 {[%clk 0:00:07]}  Ne6 {[%clk 0:00:10]} 106. Bb8 {[%clk 0:00:07]}  Kf3 {[%clk 0:00:06]} 107. f5 {[%clk 0:00:07]}  gxf5 {[%clk 0:00:07]} 108. Kxh5 {[%clk 0:00:07]}  Nd8 {[%clk 0:00:04]} 109. Kg5 {[%clk 0:00:07]}  Ke4 {[%clk 0:00:05]} 110. Bh2 {[%clk 0:00:06]}  Nc6 {[%clk 0:00:06]} 111. Kf6 {[%clk 0:00:07]}  Nd4 {[%clk 0:00:07]} 112. Bb8 {[%clk 0:00:06]}  Ne2 {[%clk 0:00:07]} 113. Bc7 {[%clk 0:00:06]}  Nf4 {[%clk 0:00:07]} 114. Bb8 {[%clk 0:00:06]}  Nd3 {[%clk 0:00:07]} 115. Kg5 {[%clk 0:00:07]}  Nb4 {[%clk 0:00:07]} 116. Bh2 {[%clk 0:00:07]}  Nd5 {[%clk 0:00:08]} 117. Bb8 {[%clk 0:00:07]}  Ne7 {[%clk 0:00:08]} 118. Kf6 {[%clk 0:00:07]}  Nc6 {[%clk 0:00:08]} 119. Bc7 {[%clk 0:00:07]}  Nd4 {[%clk 0:00:09]} 120. Bb8 {[%clk 0:00:06]}  Nf3 {[%clk 0:00:09]} 121. Kg6 {[%clk 0:00:06]}  Ne5+ {[%clk 0:00:08]} 122. Kh5 {[%clk 0:00:06]}  f4 {[%clk 0:00:09]} 123. Kh4 {[%clk 0:00:06]}  f3 {[%clk 0:00:06]} 124. Kg3 {[%clk 0:00:07]}  Nc6 {[%clk 0:00:05]} 125. Bc7 {[%clk 0:00:07]}  Ke3 {[%clk 0:00:05]} 126. Bb6+ {[%clk 0:00:07]}  Ke2 {[%clk 0:00:06]} 127. Bc5 {[%clk 0:00:07]}  Nb4 {[%clk 0:00:06]} 128. Bb6 {[%clk 0:00:06]}  Nd5 {[%clk 0:00:06]} 129. Bf2 {[%clk 0:00:05]}  Nc3 {[%clk 0:00:04]} 130. Bg1 {[%clk 0:00:05]}  Ne4+ {[%clk 0:00:04]} 131. Kf4 {[%clk 0:00:05]}  Nf6 {[%clk 0:00:05]} 132. Kg3 {[%clk 0:00:05]}  Nh5+ {[%clk 0:00:04]} 133. Kg4 {[%clk 0:00:06]}  Ng7 {[%clk 0:00:04]} 134. Kg3 {[%clk 0:00:06]}  Ne6 {[%clk 0:00:05]} 135. Bf2 {[%clk 0:00:05]}  Ng5 {[%clk 0:00:05]} 136. Ba7 {[%clk 0:00:05]}  Nf7 {[%clk 0:00:04]} 137. Bg1 {[%clk 0:00:04]}  Nd6 {[%clk 0:00:04]} 138. Ba7 {[%clk 0:00:04]}  Nf5+ {[%clk 0:00:04]} 139. Kf4 {[%clk 0:00:04]}  Ne7 {[%clk 0:00:04]} 140. Kg3 {[%clk 0:00:03]}  Nd5 {[%clk 0:00:04]} 141. Bg1 {[%clk 0:00:03]}  Nc3 {[%clk 0:00:04]} 142. Ba7 {[%clk 0:00:03]}  Ne4+ {[%clk 0:00:04]} 143. Kf4 {[%clk 0:00:04]}  Nf2 {[%clk 0:00:04]} 144. Kg3 {[%clk 0:00:04]}  Nd1 {[%clk 0:00:04]} 145. Bg1 {[%clk 0:00:04]}  Nb2 {[%clk 0:00:05]} 146. Ba7 {[%clk 0:00:04]}  Na4 {[%clk 0:00:05]} 147. Bg1 {[%clk 0:00:04]}  Nc3 {[%clk 0:00:05]} 148. Ba7 {[%clk 0:00:04]}  Nb5 {[%clk 0:00:05]} 149. Bg1 {[%clk 0:00:04]}  Nc7 {[%clk 0:00:06]} 150. Bd4 {[%clk 0:00:04]}  Ne8 {[%clk 0:00:06]} 151. Bg1 {[%clk 0:00:04]}  Nd6 {[%clk 0:00:07]} 152. Ba7 {[%clk 0:00:05]}  Nf7 {[%clk 0:00:06]} 153. Bg1 {[%clk 0:00:05]}  Ng5 {[%clk 0:00:06]} 154. Ba7 {[%clk 0:00:05]}  Nh7 {[%clk 0:00:07]} 155. Bb6 {[%clk 0:00:05]}  Nf8 {[%clk 0:00:07]} 156. Ba7 {[%clk 0:00:06]}  Ne6 {[%clk 0:00:07]} 157. Bg1 {[%clk 0:00:06]}  Ng7 {[%clk 0:00:08]} 158. Ba7 {[%clk 0:00:06]}  Nf5+ {[%clk 0:00:09]} 159. Kf4 {[%clk 0:00:07]}  Ne7 {[%clk 0:00:06]} 160. Kg3 {[%clk 0:00:07]}  Nc6 {[%clk 0:00:07]} 161. Bg1 {[%clk 0:00:06]}  Ne5 {[%clk 0:00:07]} 162. Ba7 {[%clk 0:00:06]}  Nd3 {[%clk 0:00:04]} 163. Bg1 {[%clk 0:00:06]}  Nb4 {[%clk 0:00:05]} 164. Bc5 {[%clk 0:00:06]}  Na2 {[%clk 0:00:06]} 165. Bd4 {[%clk 0:00:06]}  Nc1 {[%clk 0:00:05]} 166. Bf2 {[%clk 0:00:06]}  Nb3 {[%clk 0:00:05]} 167. Ba7 {[%clk 0:00:06]}  Nd2 {[%clk 0:00:05]} 168. Bg1 {[%clk 0:00:06]}  Nc4 {[%clk 0:00:05]} 169. Bf2 {[%clk 0:00:05]}  Ne5 {[%clk 0:00:04]} 170. Bg1 {[%clk 0:00:05]}  Kf1 {[%clk 0:00:05]} 171. Bd4 {[%clk 0:00:04]}  Ke2 {[%clk 0:00:05]} 172. Bf2 {[%clk 0:00:03]}  Nc4 {[%clk 0:00:05]} 173. Bg1 {[%clk 0:00:03]}  Nd6 {[%clk 0:00:06]} 1/2-1/2


[Site "https://www.chess.com"]

[Event "Titled Tuesday Blitz August 23 Late 2022"]
[White "Howell, David W L"]
[Black "Beerdsen, Thomas"]
[WhiteFideId "410608"]
[BlackFideId "1030108"]
[WhiteElo "2559"]
[BlackElo "2567"]
[Result "1/2-1/2"]
[Round "04"]
[TimeControl "180+1"]
[Date "2022.08.23"]
[WhiteClock "0:01:51"]
[BlackClock "0:01:26"]

1. c4 {[%clk 0:03:00]}  e5 {[%clk 0:02:54]} 2. Nc3 {[%clk 0:03:00]}  Nf6 {[%clk 0:02:54]} 3. Nf3 {[%clk 0:03:00]}  e4 {[%clk 0:02:55]} 4. Ng5 {[%clk 0:03:00]}  c6 {[%clk 0:02:56]} 5. d3 {[%clk 0:02:58]}  exd3 {[%clk 0:02:51]} 6. e3 {[%clk 0:02:51]}  d5 {[%clk 0:02:44]} 7. Bxd3 {[%clk 0:02:51]}  h6 {[%clk 0:02:35]} 8. Nf3 {[%clk 0:02:49]}  dxc4 {[%clk 0:02:32]} 9. Bxc4 {[%clk 0:02:49]}  Qxd1+ {[%clk 0:02:33]} 10. Kxd1 {[%clk 0:02:50]}  Bd6 {[%clk 0:02:29]} 11. Ke2 {[%clk 0:02:49]}  O-O {[%clk 0:02:26]} 12. Rd1 {[%clk 0:02:49]}  Bc7 {[%clk 0:02:27]} 13. b3 {[%clk 0:02:49]}  Re8 {[%clk 0:02:20]} 14. Bb2 {[%clk 0:02:48]}  b5 {[%clk 0:02:16]} 15. Bd3 {[%clk 0:02:44]}  a6 {[%clk 0:02:07]} 16. Rac1 {[%clk 0:02:41]}  c5 {[%clk 0:02:05]} 17. a4 {[%clk 0:02:28]}  b4 {[%clk 0:01:50]} 18. Nb1 {[%clk 0:02:24]}  Nbd7 {[%clk 0:01:49]} 19. Bxf6 {[%clk 0:02:18]}  Nxf6 {[%clk 0:01:50]} 20. Rxc5 {[%clk 0:02:18]}  Bd8 {[%clk 0:01:42]} 21. Nbd2 {[%clk 0:02:12]}  Bb7 {[%clk 0:01:40]} 22. Bc4 {[%clk 0:02:05]}  Re7 {[%clk 0:01:26]} 23. Rc1 {[%clk 0:01:51]} 1/2-1/2


[Site "https://www.chess.com"]

[Event "Titled Tuesday Blitz August 23 Late 2022"]
[White "Jian, Alex"]
[Black "Ohanyan, Emin"]
[WhiteFideId "30901022"]
[BlackFideId "13312022"]
[WhiteElo "2095"]
[BlackElo "1927"]
[Result "0-1"]
[Round "04"]
[TimeControl "180+1"]
[Date "2022.08.23"]
[WhiteClock "0:00:01"]
[BlackClock "0:00:20"]

1. Nf3 {[%clk 0:03:00]}  d5 {[%clk 0:02:59]} 2. b3 {[%clk 0:02:55]}  Bf5 {[%clk 0:02:56]} 3. Bb2 {[%clk 0:02:55]}  e6 {[%clk 0:02:56]} 4. e3 {[%clk 0:02:55]}  Nf6 {[%clk 0:02:56]} 5. c4 {[%clk 0:02:53]}  c6 {[%clk 0:02:56]} 6. Nc3 {[%clk 0:02:53]}  Nbd7 {[%clk 0:02:56]} 7. Be2 {[%clk 0:02:51]}  Bd6 {[%clk 0:02:56]} 8. O-O {[%clk 0:02:49]}  O-O {[%clk 0:02:55]} 9. d4 {[%clk 0:02:48]}  Ne4 {[%clk 0:02:54]} 10. Bd3 {[%clk 0:02:46]}  Nxc3 {[%clk 0:02:54]} 11. Bxc3 {[%clk 0:02:45]}  Bxd3 {[%clk 0:02:55]} 12. Qxd3 {[%clk 0:02:46]}  Nf6 {[%clk 0:02:55]} 13. Bb2 {[%clk 0:02:39]}  Ne4 {[%clk 0:02:55]} 14. Nd2 {[%clk 0:02:36]}  f5 {[%clk 0:02:54]} 15. Nf3 {[%clk 0:02:25]}  Rf6 {[%clk 0:02:07]} 16. Ne5 {[%clk 0:02:03]}  Rh6 {[%clk 0:02:07]} 17. g3 {[%clk 0:01:49]}  Qg5 {[%clk 0:01:43]} 18. Qe2 {[%clk 0:01:36]}  Bxe5 {[%clk 0:00:42]} 19. dxe5 {[%clk 0:01:35]}  Qg4 {[%clk 0:00:42]} 20. f3 {[%clk 0:01:22]}  Qh5 {[%clk 0:00:42]} 21. g4 {[%clk 0:01:14]}  Rg6 {[%clk 0:00:42]} 22. Qg2 {[%clk 0:00:45]}  Qh4 {[%clk 0:00:38]} 23. Kh1 {[%clk 0:00:21]}  Nc5 {[%clk 0:00:29]} 24. h3 {[%clk 0:00:15]}  h5 {[%clk 0:00:25]} 25. Rg1 {[%clk 0:00:05]}  hxg4 {[%clk 0:00:23]} 26. fxg4 {[%clk 0:00:05]}  Ne4 {[%clk 0:00:24]} 27. Raf1 {[%clk 0:00:03]}  Rxg4 {[%clk 0:00:22]} 28. Qh2 {[%clk 0:00:01]}  Ng3+ {[%clk 0:00:21]} 29. Rxg3 {[%clk 0:00:01]}  Rxg3 {[%clk 0:00:21]} 30. Bd4 {[%clk 0:00:01]}  Rxh3 {[%clk 0:00:20]} 0-1


[Site "https://www.chess.com"]

[Event "Titled Tuesday Blitz August 23 Late 2022"]
[White "Livaic, Leon"]
[Black "Navarrete Mendez, Gonzalo Alberto"]
[WhiteFideId "14531534"]
[BlackFideId "5106850"]
[WhiteElo "2540"]
[BlackElo "2261"]
[Result "1-0"]
[Round "04"]
[TimeControl "180+1"]
[Date "2022.08.23"]
[WhiteClock "0:00:32"]
[BlackClock "0:00:08"]

1. d4 {[%clk 0:03:00]}  d5 {[%clk 0:02:59]} 2. c4 {[%clk 0:03:00]}  dxc4 {[%clk 0:02:59]} 3. e3 {[%clk 0:03:00]}  Nc6 {[%clk 0:02:59]} 4. Bxc4 {[%clk 0:03:00]}  e5 {[%clk 0:02:59]} 5. Nf3 {[%clk 0:03:00]}  e4 {[%clk 0:02:59]} 6. Nfd2 {[%clk 0:03:00]}  Qg5 {[%clk 0:03:00]} 7. Nxe4 {[%clk 0:03:01]}  Qxg2 {[%clk 0:02:59]} 8. Ng3 {[%clk 0:03:01]}  Qh3 {[%clk 0:03:00]} 9. Nc3 {[%clk 0:03:01]}  Nf6 {[%clk 0:02:59]} 10. Bd2 {[%clk 0:02:50]}  Bd6 {[%clk 0:02:58]} 11. Bf1 {[%clk 0:02:38]}  Qh4 {[%clk 0:02:57]} 12. Bg2 {[%clk 0:02:31]}  O-O {[%clk 0:02:53]} 13. Nd5 {[%clk 0:02:16]}  Nxd5 {[%clk 0:02:47]} 14. Bxd5 {[%clk 0:02:17]}  Re8 {[%clk 0:02:41]} 15. Bc3 {[%clk 0:02:07]}  Bg4 {[%clk 0:02:36]} 16. Qb3 {[%clk 0:02:00]}  Nd8 {[%clk 0:02:00]} 17. O-O {[%clk 0:01:51]}  c6 {[%clk 0:01:56]} 18. Bg2 {[%clk 0:01:51]}  Rb8 {[%clk 0:01:45]} 19. Rae1 {[%clk 0:01:45]}  Ne6 {[%clk 0:01:45]} 20. f4 {[%clk 0:01:45]}  Re7 {[%clk 0:01:36]} 21. Bb4 {[%clk 0:01:35]}  Bxb4 {[%clk 0:01:30]} 22. Qxb4 {[%clk 0:01:36]}  Rbe8 {[%clk 0:01:28]} 23. e4 {[%clk 0:01:36]}  h5 {[%clk 0:01:21]} 24. d5 {[%clk 0:01:29]}  c5 {[%clk 0:01:02]} 25. Qc3 {[%clk 0:01:23]}  Nd8 {[%clk 0:00:35]} 26. d6 {[%clk 0:01:23]}  Rd7 {[%clk 0:00:32]} 27. e5 {[%clk 0:01:23]}  b6 {[%clk 0:00:27]} 28. a3 {[%clk 0:01:08]}  Bh3 {[%clk 0:00:25]} 29. b4 {[%clk 0:01:06]}  Bxg2 {[%clk 0:00:25]} 30. Kxg2 {[%clk 0:01:07]}  Ne6 {[%clk 0:00:20]} 31. Qf3 {[%clk 0:01:02]}  cxb4 {[%clk 0:00:17]} 32. axb4 {[%clk 0:01:01]}  Rc8 {[%clk 0:00:17]} 33. Rf2 {[%clk 0:00:51]}  Rc4 {[%clk 0:00:16]} 34. Re4 {[%clk 0:00:51]}  Rxe4 {[%clk 0:00:16]} 35. Nxe4 {[%clk 0:00:45]}  Nd4 {[%clk 0:00:14]} 36. Qg3 {[%clk 0:00:45]}  Qxg3+ {[%clk 0:00:13]} 37. hxg3 {[%clk 0:00:46]}  Nf5 {[%clk 0:00:13]} 38. Kf3 {[%clk 0:00:39]}  Nd4+ {[%clk 0:00:12]} 39. Ke3 {[%clk 0:00:39]}  Nf5+ {[%clk 0:00:12]} 40. Kd3 {[%clk 0:00:39]}  Kf8 {[%clk 0:00:12]} 41. Rc2 {[%clk 0:00:38]}  Rd8 {[%clk 0:00:12]} 42. Rc7 {[%clk 0:00:37]}  a5 {[%clk 0:00:12]} 43. b5 {[%clk 0:00:36]}  h4 {[%clk 0:00:11]} 44. gxh4 {[%clk 0:00:34]}  Nxh4 {[%clk 0:00:12]} 45. Ng5 {[%clk 0:00:32]}  Kg8 {[%clk 0:00:10]} 46. Nxf7 {[%clk 0:00:32]}  Rb8 {[%clk 0:00:08]} 47. d7 {[%clk 0:00:32]}  Kxf7 {[%clk 0:00:08]} 48. d8=Q+ {[%clk 0:00:32]} 1-0


[Site "https://www.chess.com"]

[Event "Titled Tuesday Blitz August 23 Late 2022"]
[White "Mitrabha, Guha"]
[Black "Czopor, Maciej"]
[WhiteFideId "5057000"]
[BlackFideId "21805431"]
[WhiteElo "2499"]
[BlackElo "1924"]
[Result "0-1"]
[Round "04"]
[TimeControl "180+1"]
[Date "2022.08.23"]
[WhiteClock "0:00:26"]
[BlackClock "0:00:08"]

1. d4 {[%clk 0:02:29]}  Nf6 {[%clk 0:03:00]} 2. Nf3 {[%clk 0:02:29]}  g6 {[%clk 0:02:58]} 3. Nc3 {[%clk 0:02:28]}  Bg7 {[%clk 0:02:55]} 4. e4 {[%clk 0:02:28]}  O-O {[%clk 0:02:55]} 5. e5 {[%clk 0:02:24]}  Ne8 {[%clk 0:02:54]} 6. h4 {[%clk 0:02:25]}  d6 {[%clk 0:02:52]} 7. exd6 {[%clk 0:02:23]}  Nxd6 {[%clk 0:02:40]} 8. h5 {[%clk 0:02:20]}  Bg4 {[%clk 0:02:40]} 9. hxg6 {[%clk 0:02:20]}  hxg6 {[%clk 0:02:38]} 10. Be2 {[%clk 0:02:19]}  Nc6 {[%clk 0:02:36]} 11. d5 {[%clk 0:02:12]}  Bxf3 {[%clk 0:02:36]} 12. Bxf3 {[%clk 0:02:11]}  Nd4 {[%clk 0:02:36]} 13. Bh6 {[%clk 0:02:05]}  e5 {[%clk 0:02:15]} 14. dxe6 {[%clk 0:01:55]}  Nxe6 {[%clk 0:02:09]} 15. Bxg7 {[%clk 0:01:53]}  Kxg7 {[%clk 0:02:10]} 16. Qe2 {[%clk 0:01:51]}  Qg5 {[%clk 0:02:04]} 17. Qd2 {[%clk 0:01:20]}  Qxd2+ {[%clk 0:01:58]} 18. Kxd2 {[%clk 0:01:21]}  Rad8 {[%clk 0:01:59]} 19. Kc1 {[%clk 0:01:21]}  Rh8 {[%clk 0:01:49]} 20. Rd1 {[%clk 0:01:18]}  Rh2 {[%clk 0:01:44]} 21. Rg1 {[%clk 0:00:53]}  Nd4 {[%clk 0:01:17]} 22. Bd1 {[%clk 0:00:50]}  a5 {[%clk 0:01:10]} 23. b3 {[%clk 0:00:49]}  b5 {[%clk 0:01:05]} 24. a3 {[%clk 0:00:49]}  N6f5 {[%clk 0:00:57]} 25. Kb2 {[%clk 0:00:44]}  Nh4 {[%clk 0:00:55]} 26. g3 {[%clk 0:00:37]}  Nhf3 {[%clk 0:00:52]} 27. Bxf3 {[%clk 0:00:29]}  Nxf3 {[%clk 0:00:52]} 28. Rgf1 {[%clk 0:00:29]}  c6 {[%clk 0:00:50]} 29. Rad1 {[%clk 0:00:27]}  Rd2 {[%clk 0:00:49]} 30. Ne4 {[%clk 0:00:24]}  Re2 {[%clk 0:00:44]} 31. Nc5 {[%clk 0:00:17]}  Rhxf2 {[%clk 0:00:37]} 32. Rxf2 {[%clk 0:00:18]}  Rxf2 {[%clk 0:00:38]} 33. Rd6 {[%clk 0:00:18]}  Ne1 {[%clk 0:00:34]} 34. Rxc6 {[%clk 0:00:03]}  Rxc2+ {[%clk 0:00:34]} 35. Kb1 {[%clk 0:00:04]}  Kh6 {[%clk 0:00:35]} 36. b4 {[%clk 0:00:04]}  axb4 {[%clk 0:00:34]} 37. axb4 {[%clk 0:00:05]}  Kh5 {[%clk 0:00:33]} 38. Rf6 {[%clk 0:00:05]}  Rc4 {[%clk 0:00:31]} 39. Rxf7 {[%clk 0:00:04]}  Rxb4+ {[%clk 0:00:31]} 40. Ka2 {[%clk 0:00:05]}  Kg4 {[%clk 0:00:16]} 41. Rg7 {[%clk 0:00:04]}  g5 {[%clk 0:00:15]} 42. Ne6 {[%clk 0:00:03]}  Nf3 {[%clk 0:00:15]} 43. Ka3 {[%clk 0:00:03]}  Ra4+ {[%clk 0:00:15]} 44. Kb3 {[%clk 0:00:03]}  Re4 {[%clk 0:00:09]} 45. Nc5 {[%clk 0:00:03]}  Re5 {[%clk 0:00:06]} 46. Kb4 {[%clk 0:00:03]}  Kxg3 {[%clk 0:00:06]} 47. Kxb5 {[%clk 0:00:04]}  g4 {[%clk 0:00:06]} 48. Kc4 {[%clk 0:00:04]}  Re1 {[%clk 0:00:03]} 49. Nd3 {[%clk 0:00:04]}  Re4+ {[%clk 0:00:02]} 50. Kc3 {[%clk 0:00:05]}  Re3 {[%clk 0:00:02]} 51. Kc2 {[%clk 0:00:05]}  Ne1+ {[%clk 0:00:02]} 52. Kd2 {[%clk 0:00:06]}  Rxd3+ {[%clk 0:00:02]} 53. Kxe1 {[%clk 0:00:07]}  Rf3 {[%clk 0:00:02]} 54. Rg8 {[%clk 0:00:06]}  Kh3 {[%clk 0:00:02]} 55. Ke2 {[%clk 0:00:06]}  Rf7 {[%clk 0:00:02]} 56. Ra8 {[%clk 0:00:05]}  Kg2 {[%clk 0:00:02]} 57. Ke3 {[%clk 0:00:06]}  g3 {[%clk 0:00:02]} 58. Ra2+ {[%clk 0:00:06]}  Kh3 {[%clk 0:00:02]} 59. Ra1 {[%clk 0:00:07]}  g2 {[%clk 0:00:03]} 60. Ra8 {[%clk 0:00:08]}  Kh2 {[%clk 0:00:02]} 61. Rh8+ {[%clk 0:00:09]}  Kg1 {[%clk 0:00:03]} 62. Ke2 {[%clk 0:00:09]}  Re7+ {[%clk 0:00:03]} 63. Kd2 {[%clk 0:00:09]}  Re5 {[%clk 0:00:02]} 64. Rf8 {[%clk 0:00:09]}  Kh2 {[%clk 0:00:01]} 65. Rh8+ {[%clk 0:00:10]}  Kg3 {[%clk 0:00:02]} 66. Rg8+ {[%clk 0:00:11]}  Kf3 {[%clk 0:00:02]} 67. Rh8 {[%clk 0:00:12]}  Kg3 {[%clk 0:00:02]} 68. Rf8 {[%clk 0:00:13]}  g1=Q {[%clk 0:00:02]} 69. Rg8+ {[%clk 0:00:13]}  Kf2 {[%clk 0:00:03]} 70. Rf8+ {[%clk 0:00:14]}  Kg2 {[%clk 0:00:03]} 71. Rg8+ {[%clk 0:00:15]}  Kf1 {[%clk 0:00:04]} 72. Rf8+ {[%clk 0:00:15]}  Qf2+ {[%clk 0:00:04]} 73. Rxf2+ {[%clk 0:00:16]}  Kxf2 {[%clk 0:00:05]} 74. Kd3 {[%clk 0:00:17]}  Kf3 {[%clk 0:00:06]} 75. Kd4 {[%clk 0:00:18]}  Kf4 {[%clk 0:00:06]} 76. Kd3 {[%clk 0:00:18]}  Re4 {[%clk 0:00:07]} 77. Kd2 {[%clk 0:00:19]}  Re3 {[%clk 0:00:07]} 78. Kd1 {[%clk 0:00:19]}  Kf3 {[%clk 0:00:08]} 79. Kd2 {[%clk 0:00:20]}  Kf2 {[%clk 0:00:09]} 80. Kc2 {[%clk 0:00:21]}  Ke2 {[%clk 0:00:09]} 81. Kb1 {[%clk 0:00:22]}  Rc3 {[%clk 0:00:08]} 82. Ka1 {[%clk 0:00:23]}  Kd2 {[%clk 0:00:08]} 83. Kb2 {[%clk 0:00:24]}  Kd3 {[%clk 0:00:07]} 84. Ka1 {[%clk 0:00:25]}  Rb3 {[%clk 0:00:07]} 85. Ka2 {[%clk 0:00:25]}  Kc2 {[%clk 0:00:07]} 86. Ka1 {[%clk 0:00:26]}  Ra3# {[%clk 0:00:08]} 0-1


[Site "https://www.chess.com"]

[Event "Titled Tuesday Blitz August 23 Late 2022"]
[White "Pakleza, Zbigniew"]
[Black "Levine, Joseph"]
[WhiteFideId "1119290"]
[BlackFideId "30940346"]
[WhiteElo "2411"]
[BlackElo "1810"]
[Result "1-0"]
[Round "04"]
[TimeControl "180+1"]
[Date "2022.08.23"]
[WhiteClock "0:01:33"]
[BlackClock "0:01:04"]

1. d4 {[%clk 0:03:00]}  d5 {[%clk 0:02:59]} 2. Bf4 {[%clk 0:03:00]}  Nf6 {[%clk 0:02:59]} 3. e3 {[%clk 0:03:01]}  Bf5 {[%clk 0:02:59]} 4. c4 {[%clk 0:03:01]}  e6 {[%clk 0:02:59]} 5. Nc3 {[%clk 0:03:01]}  Nbd7 {[%clk 0:02:58]} 6. Qb3 {[%clk 0:02:58]}  Bd6 {[%clk 0:02:42]} 7. Bxd6 {[%clk 0:02:55]}  dxc4 {[%clk 0:02:31]} 8. Bxc7 {[%clk 0:02:41]}  Qxc7 {[%clk 0:02:14]} 9. Qxc4 {[%clk 0:02:40]}  Qb6 {[%clk 0:02:12]} 10. Qb5 {[%clk 0:02:34]}  Qd6 {[%clk 0:02:04]} 11. Nf3 {[%clk 0:02:29]}  O-O {[%clk 0:02:00]} 12. Be2 {[%clk 0:02:29]}  Bc2 {[%clk 0:01:41]} 13. a3 {[%clk 0:01:52]}  Nb6 {[%clk 0:01:15]} 14. Rc1 {[%clk 0:01:44]}  a6 {[%clk 0:01:04]} 15. Qc5 {[%clk 0:01:33]} 1-0


[Site "https://www.chess.com"]